[Event "Late-Titled-Tuesday-Blitz-May-07-2024"]
[Site "Chess.com"]
[Date "2024.05.07"]
[Round "3"]
[White "Polish_fighter3000"]
[Black "XDPS"]
[Result "0-1"]
[WhiteElo "3114"]
[BlackElo "2844"]
[TimeControl "180+1"]
[EndTime "14:29:23 PDT"]
[Termination "XDPS won on time"]

1. e4 {[%clk 0:03:00.9]} 1... c5 {[%clk 0:02:58.3]} 2. Nf3 {[%clk 0:03:00.6]}
2... e6 {[%clk 0:02:58.9]} 3. d4 {[%clk 0:02:58.8]} 3... cxd4 {[%clk 0:02:59.8]}
4. Nxd4 {[%clk 0:02:59.2]} 4... a6 {[%clk 0:03:00.4]} 5. c4 {[%clk 0:02:58.5]}
5... Qc7 {[%clk 0:02:59.5]} 6. Nc3 {[%clk 0:02:58.5]} 6... Nf6 {[%clk
0:03:00.2]} 7. a3 {[%clk 0:02:54.3]} 7... b6 {[%clk 0:03:00.3]} 8. Be3 {[%clk
0:02:53.7]} 8... Bb7 {[%clk 0:03:00.9]} 9. f3 {[%clk 0:02:51.9]} 9... d6 {[%clk
0:03:01.4]} 10. Rc1 {[%clk 0:02:50.8]} 10... Nbd7 {[%clk 0:03:01.8]} 11. Kd2
{[%clk 0:02:43.5]} 11... h5 {[%clk 0:03:00.6]} 12. Kc2 {[%clk 0:02:42.7]} 12...
Rc8 {[%clk 0:02:57.8]} 13. Kb1 {[%clk 0:02:42.3]} 13... Be7 {[%clk 0:02:57.5]}
14. Be2 {[%clk 0:02:23.3]} 14... Qb8 {[%clk 0:02:54.5]} 15. g3 {[%clk 0:02:16]}
15... Ne5 {[%clk 0:02:53.1]} 16. h3 {[%clk 0:01:50.4]} 16... Nfd7 {[%clk
0:02:52]} 17. Qf1 {[%clk 0:01:48.1]} 17... Nc5 {[%clk 0:02:32.6]} 18. f4 {[%clk
0:01:30.8]} 18... Ned7 {[%clk 0:01:55.7]} 19. Bf3 {[%clk 0:01:29.1]} 19... Nf6
{[%clk 0:01:55.9]} 20. Nd5 {[%clk 0:01:24.6]} 20... exd5 {[%clk 0:01:55.5]} 21.
exd5 {[%clk 0:01:25.5]} 21... b5 {[%clk 0:01:42.5]} 22. cxb5 {[%clk 0:00:56.6]}
22... O-O {[%clk 0:01:34]} 23. Nc6 {[%clk 0:00:43.1]} 23... Bxc6 {[%clk
0:01:34]} 24. bxc6 {[%clk 0:00:44]} 24... Nfe4 {[%clk 0:01:23.2]} 25. Qc4 {[%clk
0:00:23]} 25... Bf6 {[%clk 0:01:17.2]} 26. Rc2 {[%clk 0:00:20.4]} 26... Nxg3
{[%clk 0:01:08.4]} 27. Rg1 {[%clk 0:00:20.3]} 27... Nf5 {[%clk 0:01:08.5]} 28.
Bf2 {[%clk 0:00:13.8]} 28... Rfe8 {[%clk 0:01:02.1]} 29. Ka2 {[%clk 0:00:06.8]}
29... Ne3 {[%clk 0:01:02]} 30. Bxe3 {[%clk 0:00:07]} 30... Rxe3 {[%clk
0:01:02.9]} 31. Bxh5 {[%clk 0:00:07.6]} 31... Re4 {[%clk 0:00:54.5]} 32. Qf1
{[%clk 0:00:01.9]} 32... Qb3+ {[%clk 0:00:53.6]} 33. Kb1 {[%clk 0:00:02.5]}
33... Nd3 {[%clk 0:00:39.1]} 34. Qg2 {[%clk 0:00:02.2]} 34... Re1+ {[%clk
0:00:29]} 35. Rxe1 {[%clk 0:00:01.4]} 35... Nxe1 {[%clk 0:00:29.9]} 36. Qe4
{[%clk 0:00:00.7]} 36... Nxc2 {[%clk 0:00:25.8]} 37. Qxc2 {[%clk 0:00:00.6]}
37... Qxh3 {[%clk 0:00:21.7]} 38. Be2 {[%clk 0:00:00.2]} 38... Qh1+ {[%clk
0:00:21.2]} 39. Qd1 {[%clk 0:00:01.1]} 39... Qe4+ {[%clk 0:00:20.5]} 40. Qd3
{[%clk 0:00:00.7]} 40... Qxf4 {[%clk 0:00:18.6]} 41. Qxa6 {[%clk 0:00:00.5]}
41... Rb8 {[%clk 0:00:17.6]} 42. b4 {[%clk 0:00:00.3]} 42... Qe4+ {[%clk
0:00:17]} 43. Qd3 {[%clk 0:00:00.7]} 43... Qe5 {[%clk 0:00:17]} 44. Kc2 {[%clk
0:00:01.1]} 44... Qb2+ {[%clk 0:00:16.1]} 45. Kd1 {[%clk 0:00:01.8]} 45... Qa1+
{[%clk 0:00:16.2]} 46. Kc2 {[%clk 0:00:01.2]} 46... Qa2+ {[%clk 0:00:16.3]} 47.
Kd1 {[%clk 0:00:01.2]} 47... Re8 {[%clk 0:00:15.7]} 48. b5 {[%clk 0:00:00.3]}
48... Qa1+ {[%clk 0:00:14.9]} 49. Kc2 {[%clk 0:00:00.5]} 49... Qb2+ {[%clk
0:00:15.1]} 50. Kd1 {[%clk 0:00:01.1]} 50... Bc3 {[%clk 0:00:15.5]} 51. Qc2
{[%clk 0:00:00.5]} 51... Qxa3 {[%clk 0:00:15.4]} 52. c7 {[%clk 0:00:00.4]} 52...
Qa1+ {[%clk 0:00:15.6]} 53. Qc1 {[%clk 0:00:00.5]} 53... Qa4+ {[%clk 0:00:15.8]}
54. Qc2 {[%clk 0:00:00.8]} 54... Qxc2+ {[%clk 0:00:14.2]} 55. Kxc2 {[%clk
0:00:01.7]} 55... Ba5 {[%clk 0:00:14.2]} 56. Bg4 {[%clk 0:00:02.2]} 56... Bxc7
{[%clk 0:00:14.4]} 57. Kd3 {[%clk 0:00:02.4]} 57... Bb6 {[%clk 0:00:14.7]} 58.
Bd7 {[%clk 0:00:02.9]} 58... Re5 {[%clk 0:00:14.6]} 59. Kd2 {[%clk 0:00:03.3]}
59... f5 {[%clk 0:00:15]} 60. Be6+ {[%clk 0:00:03.1]} 60... Kf8 {[%clk
0:00:15.3]} 61. Kd3 {[%clk 0:00:03.8]} 61... Ke7 {[%clk 0:00:15.8]} 62. Kd2
{[%clk 0:00:04.7]} 62... Kf6 {[%clk 0:00:16.3]} 63. Kd3 {[%clk 0:00:05.1]} 63...
g5 {[%clk 0:00:16.8]} 64. Kd2 {[%clk 0:00:05.7]} 64... g4 {[%clk 0:00:17.4]} 65.
Kd3 {[%clk 0:00:06.6]} 65... f4 {[%clk 0:00:17.9]} 66. Kd2 {[%clk 0:00:07.5]}
66... g3 {[%clk 0:00:18.1]} 0-1

[Event "Late-Titled-Tuesday-Blitz-May-07-2024"]
[Site "Chess.com"]
[Date "2024.05.07"]
[Round "3"]
[White "TheDiscoOne"]
[Black "gmcorrales"]
[Result "0-1"]
[WhiteElo "2520"]
[BlackElo "2880"]
[TimeControl "180+1"]
[EndTime "14:29:24 PDT"]
[Termination "gmcorrales won on time"]

1. c4 {[%clk 0:03:00.9]} 1... c5 {[%clk 0:02:58.6]} 2. g3 {[%clk 0:03:00]} 2...
Nc6 {[%clk 0:02:54.7]} 3. Bg2 {[%clk 0:03:00]} 3... Nf6 {[%clk 0:02:54.3]} 4.
Nc3 {[%clk 0:02:59]} 4... g6 {[%clk 0:02:44.6]} 5. d3 {[%clk 0:02:55]} 5... Bg7
{[%clk 0:02:44.2]} 6. e4 {[%clk 0:02:55]} 6... d6 {[%clk 0:02:27.8]} 7. Nge2
{[%clk 0:02:54.3]} 7... Rb8 {[%clk 0:01:34.2]} 8. O-O {[%clk 0:02:53.1]} 8...
O-O {[%clk 0:01:26.2]} 9. h3 {[%clk 0:02:50.4]} 9... a6 {[%clk 0:01:24]} 10. a4
{[%clk 0:02:47.2]} 10... Ne8 {[%clk 0:01:21.4]} 11. Be3 {[%clk 0:02:46.5]} 11...
Nc7 {[%clk 0:01:21.8]} 12. d4 {[%clk 0:02:45.3]} 12... cxd4 {[%clk 0:01:17.6]}
13. Nxd4 {[%clk 0:02:46.2]} 13... Ne6 {[%clk 0:01:16.6]} 14. Nde2 {[%clk
0:02:45.6]} 14... Nc5 {[%clk 0:01:16.6]} 15. b3 {[%clk 0:02:36.6]} 15... e6
{[%clk 0:01:11.5]} 16. Rb1 {[%clk 0:02:30.1]} 16... Nb4 {[%clk 0:01:10.8]} 17.
Qd2 {[%clk 0:02:14.5]} 17... Qc7 {[%clk 0:01:06.6]} 18. Rfd1 {[%clk 0:02:07.3]}
18... b6 {[%clk 0:01:02]} 19. Na2 {[%clk 0:01:45.4]} 19... Nxa2 {[%clk
0:01:01.6]} 20. Qxa2 {[%clk 0:01:46.3]} 20... Rd8 {[%clk 0:01:02.2]} 21. Rd2
{[%clk 0:01:40.2]} 21... Bb7 {[%clk 0:01:02.4]} 22. Qc2 {[%clk 0:01:36.9]} 22...
Qc6 {[%clk 0:00:58.1]} 23. Nd4 {[%clk 0:01:12.5]} 23... Qc7 {[%clk 0:00:51.3]}
24. Rbd1 {[%clk 0:01:07.8]} 24... h6 {[%clk 0:00:51.3]} 25. Ne2 {[%clk 0:01:06]}
25... Kh7 {[%clk 0:00:51.1]} 26. Bd4 {[%clk 0:01:01.3]} 26... Bxd4 {[%clk
0:00:43.4]} 27. Rxd4 {[%clk 0:00:57.6]} 27... Bc6 {[%clk 0:00:41.6]} 28. Nc3
{[%clk 0:00:56.7]} 28... e5 {[%clk 0:00:39.4]} 29. R4d2 {[%clk 0:00:55.1]} 29...
Ne6 {[%clk 0:00:39.9]} 30. Ne2 {[%clk 0:00:53.5]} 30... b5 {[%clk 0:00:28.3]}
31. axb5 {[%clk 0:00:52.4]} 31... axb5 {[%clk 0:00:29.2]} 32. f4 {[%clk
0:00:43.9]} 32... b4 {[%clk 0:00:29.3]} 33. f5 {[%clk 0:00:41]} 33... Nc5 {[%clk
0:00:24.4]} 34. g4 {[%clk 0:00:33.3]} 34... Ra8 {[%clk 0:00:24.5]} 35. Nc1
{[%clk 0:00:23.7]} 35... Rd7 {[%clk 0:00:22.8]} 36. fxg6+ {[%clk 0:00:21.4]}
36... fxg6 {[%clk 0:00:23.7]} 37. Rf2 {[%clk 0:00:21.3]} 37... Qb7 {[%clk
0:00:22.8]} 38. Re1 {[%clk 0:00:19.6]} 38... Ra1 {[%clk 0:00:20.3]} 39. Qb2
{[%clk 0:00:18.5]} 39... Qa7 {[%clk 0:00:20.7]} 40. Kh2 {[%clk 0:00:16.2]} 40...
Ra3 {[%clk 0:00:18.7]} 41. Ref1 {[%clk 0:00:15.5]} 41... Ne6 {[%clk 0:00:17.4]}
42. Rf6 {[%clk 0:00:13.9]} 42... Qd4 {[%clk 0:00:17]} 43. Qe2 {[%clk 0:00:10.4]}
43... Nf4 {[%clk 0:00:17.5]} 44. Qf3 {[%clk 0:00:06.6]} 44... g5 {[%clk
0:00:17.5]} 45. h4 {[%clk 0:00:06.1]} 45... Kg7 {[%clk 0:00:17.4]} 46. hxg5
{[%clk 0:00:06.2]} 46... hxg5 {[%clk 0:00:18.3]} 47. Rf5 {[%clk 0:00:06.5]}
47... Kg6 {[%clk 0:00:14.7]} 48. Kg3 {[%clk 0:00:04.3]} 48... Rh7 {[%clk
0:00:14.6]} 49. Rh1 {[%clk 0:00:04.2]} 49... Rxh1 {[%clk 0:00:12.5]} 50. Bxh1
{[%clk 0:00:05.1]} 50... Qg1+ {[%clk 0:00:12.5]} 51. Bg2 {[%clk 0:00:05]} 51...
Qxc1 {[%clk 0:00:12.1]} 52. Rxf4 {[%clk 0:00:02.3]} 52... exf4+ {[%clk 0:00:11]}
53. Kh2 {[%clk 0:00:01.9]} 53... Qe1 {[%clk 0:00:10.5]} 54. Qd3 {[%clk 0:00:02]}
54... Qg3+ {[%clk 0:00:10.4]} 55. Qxg3 {[%clk 0:00:01.1]} 55... fxg3+ {[%clk
0:00:11.3]} 56. Kxg3 {[%clk 0:00:01.9]} 56... Rxb3+ {[%clk 0:00:11.8]} 0-1

[Event "Late-Titled-Tuesday-Blitz-May-07-2024"]
[Site "Chess.com"]
[Date "2024.05.07"]
[Round "3"]
[White "MaiqMaster"]
[Black "quvnoq_muxlis"]
[Result "1-0"]
[WhiteElo "2505"]
[BlackElo "2687"]
[TimeControl "180+1"]
[EndTime "14:29:30 PDT"]
[Termination "MaiqMaster won by resignation"]

1. e4 {[%clk 0:03:00.9]} 1... c5 {[%clk 0:02:58.2]} 2. Nc3 {[%clk 0:02:57.2]}
2... Nc6 {[%clk 0:02:57.6]} 3. Bb5 {[%clk 0:02:54.3]} 3... Nd4 {[%clk
0:02:56.1]} 4. Nf3 {[%clk 0:02:54]} 4... e6 {[%clk 0:02:56.7]} 5. O-O {[%clk
0:02:51.9]} 5... Qc7 {[%clk 0:02:54]} 6. Re1 {[%clk 0:02:44.1]} 6... a6 {[%clk
0:02:52.2]} 7. Bf1 {[%clk 0:02:43.6]} 7... b5 {[%clk 0:02:52.7]} 8. Nxd4 {[%clk
0:02:38.1]} 8... cxd4 {[%clk 0:02:53.6]} 9. Ne2 {[%clk 0:02:38]} 9... d3 {[%clk
0:02:41.8]} 10. cxd3 {[%clk 0:02:35.9]} 10... Bb7 {[%clk 0:02:41.1]} 11. b3
{[%clk 0:02:35.2]} 11... Nf6 {[%clk 0:02:28.1]} 12. Bb2 {[%clk 0:02:34.4]} 12...
Be7 {[%clk 0:02:28.4]} 13. Rc1 {[%clk 0:02:33.6]} 13... Qb8 {[%clk 0:02:29.1]}
14. g3 {[%clk 0:02:27.1]} 14... O-O {[%clk 0:02:28.9]} 15. Bg2 {[%clk
0:02:27.4]} 15... a5 {[%clk 0:02:29.3]} 16. Nf4 {[%clk 0:02:22.9]} 16... e5
{[%clk 0:01:48.2]} 17. Nh5 {[%clk 0:02:11.7]} 17... Ra6 {[%clk 0:01:37]} 18. d4
{[%clk 0:02:04.7]} 18... d6 {[%clk 0:01:02.4]} 19. d5 {[%clk 0:01:57.6]} 19...
Nxh5 {[%clk 0:00:56.2]} 20. Qxh5 {[%clk 0:01:58.5]} 20... g6 {[%clk 0:00:56.8]}
21. Qe2 {[%clk 0:01:56.9]} 21... Bc8 {[%clk 0:00:56.5]} 22. d4 {[%clk
0:01:55.9]} 22... f6 {[%clk 0:00:54.7]} 23. Rc6 {[%clk 0:01:48]} 23... Bb7
{[%clk 0:00:46.1]} 24. Rxa6 {[%clk 0:01:47.2]} 24... Bxa6 {[%clk 0:00:47]} 25.
Rc1 {[%clk 0:01:46.2]} 25... Qd8 {[%clk 0:00:44]} 26. Rc6 {[%clk 0:01:45.1]}
26... Bb7 {[%clk 0:00:44.2]} 27. Rc2 {[%clk 0:01:42.4]} 27... Qb6 {[%clk
0:00:43.7]} 28. Bf1 {[%clk 0:01:34.2]} 28... b4 {[%clk 0:00:33.7]} 29. Qb5
{[%clk 0:01:28.6]} 29... Bd8 {[%clk 0:00:33.6]} 30. Qxb6 {[%clk 0:01:20.3]}
30... Bxb6 {[%clk 0:00:34.5]} 31. dxe5 {[%clk 0:01:13]} 31... fxe5 {[%clk
0:00:32.6]} 32. Kg2 {[%clk 0:01:13.4]} 32... g5 {[%clk 0:00:28.2]} 33. f3 {[%clk
0:01:12.2]} 33... g4 {[%clk 0:00:19.6]} 34. fxg4 {[%clk 0:01:07.4]} 34... Bc8
{[%clk 0:00:20]} 35. h3 {[%clk 0:01:06.6]} 35... Bd7 {[%clk 0:00:19.5]} 36. Bc1
{[%clk 0:01:02.6]} 36... a4 {[%clk 0:00:17.4]} 37. Bc4 {[%clk 0:01:01.9]} 37...
Bc5 {[%clk 0:00:10.5]} 38. Re2 {[%clk 0:00:59.9]} 38... Ra8 {[%clk 0:00:08]} 39.
Be3 {[%clk 0:00:58.8]} 39... axb3 {[%clk 0:00:07.8]} 40. Bxb3 {[%clk 0:00:58.3]}
40... Bxe3 {[%clk 0:00:03.2]} 41. Rxe3 {[%clk 0:00:59.2]} 41... Ba4 {[%clk
0:00:03.7]} 42. Bxa4 {[%clk 0:00:47.3]} 42... Rxa4 {[%clk 0:00:04.6]} 43. Re2
{[%clk 0:00:47.8]} 43... Kf7 {[%clk 0:00:03.7]} 44. g5 {[%clk 0:00:44.1]} 44...
Kg6 {[%clk 0:00:03.8]} 45. h4 {[%clk 0:00:43.4]} 45... Kh5 {[%clk 0:00:03.9]}
46. Kh3 {[%clk 0:00:43.2]} 46... Kg6 {[%clk 0:00:02.9]} 47. Kg4 {[%clk 0:00:43]}
47... Kf7 {[%clk 0:00:01.6]} 48. Kf5 {[%clk 0:00:41.8]} 48... Ra3 {[%clk
0:00:01.1]} 49. Kg4 {[%clk 0:00:37.6]} 49... Ra4 {[%clk 0:00:01.1]} 50. h5
{[%clk 0:00:35.3]} 50... Kg7 {[%clk 0:00:01.3]} 51. Kf5 {[%clk 0:00:32.3]} 51...
Kf7 {[%clk 0:00:01.8]} 52. Rf2 {[%clk 0:00:26.8]} 52... Kg7 {[%clk 0:00:02.2]}
53. Ke6 {[%clk 0:00:26.3]} 53... Ra6 {[%clk 0:00:02.1]} 54. Rf7+ {[%clk
0:00:25.5]} 54... Kg8 {[%clk 0:00:02.8]} 55. Rd7 {[%clk 0:00:21.8]} 55... Rxa2
{[%clk 0:00:03.4]} 56. h6 {[%clk 0:00:19.1]} 56... Ra8 {[%clk 0:00:00.9]} 57.
Rxd6 {[%clk 0:00:17.2]} 57... Rb8 {[%clk 0:00:01.1]} 58. Rc6 {[%clk 0:00:09.8]}
58... b3 {[%clk 0:00:01.7]} 59. Rc1 {[%clk 0:00:10.2]} 59... b2 {[%clk
0:00:02.6]} 60. Rb1 {[%clk 0:00:10.5]} 60... Kf8 {[%clk 0:00:03.5]} 61. Kxe5
{[%clk 0:00:10.7]} 61... Ke7 {[%clk 0:00:03.9]} 62. Kf5 {[%clk 0:00:10]} 62...
Kd6 {[%clk 0:00:04.1]} 63. g6 {[%clk 0:00:09.2]} 63... hxg6+ {[%clk 0:00:05]}
64. Kxg6 {[%clk 0:00:10.1]} 64... Ke5 {[%clk 0:00:03.9]} 65. h7 {[%clk
0:00:09.9]} 65... Rb6+ {[%clk 0:00:04.6]} 66. Kg7 {[%clk 0:00:10]} 66... Rb8
{[%clk 0:00:04.9]} 67. h8=Q {[%clk 0:00:10.1]} 67... Rxh8 {[%clk 0:00:05.6]} 68.
Kxh8 {[%clk 0:00:11]} 1-0

[Event "Late-Titled-Tuesday-Blitz-May-07-2024"]
[Site "Chess.com"]
[Date "2024.05.07"]
[Round "3"]
[White "Cipy77"]
[Black "ContrVersia"]
[Result "0-1"]
[WhiteElo "2643"]
[BlackElo "2885"]
[TimeControl "180+1"]
[EndTime "14:29:34 PDT"]
[Termination "ContrVersia won by resignation"]

1. Nf3 {[%clk 0:02:59.4]} 1... d5 {[%clk 0:02:58.8]} 2. g3 {[%clk 0:02:58.2]}
2... Nd7 {[%clk 0:02:58.9]} 3. Bg2 {[%clk 0:02:58.7]} 3... e5 {[%clk 0:02:58.8]}
4. d3 {[%clk 0:02:58.7]} 4... Ngf6 {[%clk 0:02:59]} 5. O-O {[%clk 0:02:59]} 5...
Bc5 {[%clk 0:02:59.2]} 6. Nc3 {[%clk 0:02:58.8]} 6... O-O {[%clk 0:02:58.4]} 7.
e4 {[%clk 0:02:55.3]} 7... dxe4 {[%clk 0:02:58.4]} 8. Nxe4 {[%clk 0:02:52.4]}
8... Nxe4 {[%clk 0:02:58.3]} 9. dxe4 {[%clk 0:02:53.1]} 9... a5 {[%clk 0:02:59]}
10. c3 {[%clk 0:02:52.8]} 10... Qe7 {[%clk 0:02:57.5]} 11. a4 {[%clk 0:02:50.7]}
11... Nf6 {[%clk 0:02:54.6]} 12. Qc2 {[%clk 0:02:50.7]} 12... b6 {[%clk
0:02:52.5]} 13. Nh4 {[%clk 0:02:27]} 13... Ba6 {[%clk 0:02:43.1]} 14. Nf5 {[%clk
0:02:26.4]} 14... Qe6 {[%clk 0:02:43.4]} 15. Re1 {[%clk 0:02:20.2]} 15... Rad8
{[%clk 0:02:41.7]} 16. Bg5 {[%clk 0:02:16.5]} 16... h6 {[%clk 0:02:33.6]} 17.
Bxf6 {[%clk 0:02:10.4]} 17... Qxf6 {[%clk 0:02:33.6]} 18. Rad1 {[%clk
0:02:10.8]} 18... h5 {[%clk 0:02:29.6]} 19. Bf1 {[%clk 0:01:56.5]} 19... Bc8
{[%clk 0:02:20.9]} 20. Bc4 {[%clk 0:01:52.9]} 20... Rxd1 {[%clk 0:02:17.4]} 21.
Rxd1 {[%clk 0:01:50.2]} 21... g6 {[%clk 0:02:16.1]} 22. Ne3 {[%clk 0:01:41]}
22... Bxe3 {[%clk 0:02:15]} 23. fxe3 {[%clk 0:01:41.3]} 23... h4 {[%clk
0:02:03.9]} 24. Rf1 {[%clk 0:01:38.2]} 24... Qg5 {[%clk 0:02:03.2]} 25. Qf2
{[%clk 0:01:35.7]} 25... Kg7 {[%clk 0:02:01.4]} 26. Kh1 {[%clk 0:01:33.2]} 26...
hxg3 {[%clk 0:01:56.4]} 27. Qxg3 {[%clk 0:01:31.7]} 27... Qxg3 {[%clk
0:01:55.2]} 28. hxg3 {[%clk 0:01:32.6]} 28... Bd7 {[%clk 0:01:54.9]} 29. b3
{[%clk 0:01:26.3]} 29... f6 {[%clk 0:01:50]} 30. Rd1 {[%clk 0:01:23.5]} 30...
Bg4 {[%clk 0:01:49.6]} 31. Rd2 {[%clk 0:01:18.4]} 31... Re8 {[%clk 0:01:18.4]}
32. Kg2 {[%clk 0:01:17.9]} 32... Kf8 {[%clk 0:01:17.5]} 33. Kf2 {[%clk
0:01:15.3]} 33... Ke7 {[%clk 0:01:16.1]} 34. Be2 {[%clk 0:01:15.3]} 34... Be6
{[%clk 0:01:15.3]} 35. b4 {[%clk 0:01:11.6]} 35... Ra8 {[%clk 0:01:15]} 36. Bb5
{[%clk 0:01:04.4]} 36... Rh8 {[%clk 0:01:06.7]} 37. bxa5 {[%clk 0:00:57.1]}
37... bxa5 {[%clk 0:01:07.6]} 38. Kg2 {[%clk 0:00:56.7]} 38... Bh3+ {[%clk
0:01:07.1]} 39. Kf2 {[%clk 0:00:56.3]} 39... Rd8 {[%clk 0:00:58.1]} 40. Rxd8
{[%clk 0:00:51.9]} 40... Kxd8 {[%clk 0:00:59]} 41. Kf3 {[%clk 0:00:51.4]} 41...
Be6 {[%clk 0:00:57.3]} 42. Ke2 {[%clk 0:00:50.1]} 42... Ke7 {[%clk 0:00:57.2]}
43. Kd3 {[%clk 0:00:50.3]} 43... Kd6 {[%clk 0:00:56.8]} 44. Be8 {[%clk
0:00:48.7]} 44... g5 {[%clk 0:00:53.2]} 45. Bb5 {[%clk 0:00:43.5]} 45... Kc5
{[%clk 0:00:52.8]} 46. Kc2 {[%clk 0:00:42.5]} 46... Bg4 {[%clk 0:00:48.5]} 47.
Bd3 {[%clk 0:00:33.9]} 47... Bd7 {[%clk 0:00:47.8]} 48. Kb3 {[%clk 0:00:33.4]}
48... Be6+ {[%clk 0:00:48.1]} 49. Ka3 {[%clk 0:00:30.2]} 49... Bc4 {[%clk
0:00:48.3]} 50. Bc2 {[%clk 0:00:29.9]} 50... Be6 {[%clk 0:00:36.2]} 51. Bd3
{[%clk 0:00:29.3]} 51... Bg4 {[%clk 0:00:32]} 52. Kb3 {[%clk 0:00:28.1]} 52...
Bd1+ {[%clk 0:00:31.7]} 53. Ka3 {[%clk 0:00:28.6]} 53... Kd6 {[%clk 0:00:31.1]}
54. Bb1 {[%clk 0:00:13.8]} 54... c6 {[%clk 0:00:31]} 55. Bd3 {[%clk 0:00:12.9]}
55... Kc5 {[%clk 0:00:31.2]} 56. Bb1 {[%clk 0:00:06.1]} 56... Kc4 {[%clk
0:00:31.2]} 57. Kb2 {[%clk 0:00:03.2]} 57... Bxa4 {[%clk 0:00:30.9]} 58. Ba2+
{[%clk 0:00:03.8]} 58... Kc5 {[%clk 0:00:31.2]} 59. Kc1 {[%clk 0:00:04]} 59...
Bb5 {[%clk 0:00:30.6]} 60. Kd2 {[%clk 0:00:04.1]} 60... Bc4 {[%clk 0:00:31.1]}
61. Bb1 {[%clk 0:00:02.6]} 61... a4 {[%clk 0:00:31.5]} 62. Bc2 {[%clk
0:00:02.9]} 62... a3 {[%clk 0:00:31.1]} 63. Kc1 {[%clk 0:00:03.5]} 63... Kb5
{[%clk 0:00:24.9]} 64. Kb1 {[%clk 0:00:03.5]} 64... Be6 {[%clk 0:00:23.9]} 65.
Ka1 {[%clk 0:00:03.5]} 65... Kc4 {[%clk 0:00:23]} 66. Bd1 {[%clk 0:00:00.1]}
66... Kxc3 {[%clk 0:00:22.8]} 67. Ba4 {[%clk 0:00:00.5]} 67... Kd2 {[%clk
0:00:21.9]} 68. Bd1 {[%clk 0:00:01.1]} 0-1

[Event "Late-Titled-Tuesday-Blitz-May-07-2024"]
[Site "Chess.com"]
[Date "2024.05.07"]
[Round "3"]
[White "GothamChess"]
[Black "DanielDardha2005"]
[Result "0-1"]
[WhiteElo "2699"]
[BlackElo "2891"]
[TimeControl "180+1"]
[EndTime "14:29:42 PDT"]
[Termination "DanielDardha2005 won by resignation"]

1. e4 {[%clk 0:03:00.3]} 1... c5 {[%clk 0:02:58.3]} 2. Nc3 {[%clk 0:02:59.9]}
2... Nc6 {[%clk 0:02:57.9]} 3. Bb5 {[%clk 0:02:59.8]} 3... Nd4 {[%clk
0:02:58.2]} 4. Nf3 {[%clk 0:03:00.1]} 4... a6 {[%clk 0:02:57.8]} 5. Bd3 {[%clk
0:02:59.4]} 5... Nc6 {[%clk 0:02:51]} 6. O-O {[%clk 0:02:59.6]} 6... e6 {[%clk
0:02:50.9]} 7. Re1 {[%clk 0:02:58.4]} 7... d6 {[%clk 0:02:49.3]} 8. Bf1 {[%clk
0:02:54.4]} 8... Nf6 {[%clk 0:02:48.1]} 9. d4 {[%clk 0:02:52.7]} 9... cxd4
{[%clk 0:02:47.7]} 10. Nxd4 {[%clk 0:02:53.6]} 10... Be7 {[%clk 0:02:46.1]} 11.
b3 {[%clk 0:02:44.8]} 11... O-O {[%clk 0:02:34]} 12. Bb2 {[%clk 0:02:44.8]}
12... Qc7 {[%clk 0:02:20.4]} 13. Rc1 {[%clk 0:02:24.7]} 13... b5 {[%clk
0:02:15.2]} 14. a4 {[%clk 0:02:18]} 14... b4 {[%clk 0:02:08.4]} 15. Nxc6 {[%clk
0:01:52.8]} 15... Qxc6 {[%clk 0:02:05.2]} 16. Na2 {[%clk 0:01:45.4]} 16... Nxe4
{[%clk 0:01:30.1]} 17. Nxb4 {[%clk 0:01:36.5]} 17... Qb7 {[%clk 0:01:29.7]} 18.
Nd3 {[%clk 0:01:30.9]} 18... e5 {[%clk 0:01:20.3]} 19. Qf3 {[%clk 0:01:18.2]}
19... Nf6 {[%clk 0:01:13.4]} 20. Qxb7 {[%clk 0:01:13.7]} 20... Bxb7 {[%clk
0:01:14.3]} 21. Ba3 {[%clk 0:01:13.5]} 21... Rfe8 {[%clk 0:01:09.5]} 22. g3
{[%clk 0:00:58.1]} 22... Nd7 {[%clk 0:00:56.3]} 23. Bg2 {[%clk 0:00:47.9]} 23...
Rab8 {[%clk 0:00:48.4]} 24. Bxb7 {[%clk 0:00:45.7]} 24... Rxb7 {[%clk
0:00:49.3]} 25. Rcd1 {[%clk 0:00:45.4]} 25... Rc8 {[%clk 0:00:43.1]} 26. Re2
{[%clk 0:00:42.7]} 26... f6 {[%clk 0:00:39]} 27. Kg2 {[%clk 0:00:39.4]} 27...
Kf7 {[%clk 0:00:37.5]} 28. Nb2 {[%clk 0:00:34.8]} 28... Ke6 {[%clk 0:00:16.8]}
29. Red2 {[%clk 0:00:34.7]} 29... Nc5 {[%clk 0:00:14]} 30. f3 {[%clk 0:00:29]}
30... Rd7 {[%clk 0:00:05.6]} 31. Rd5 {[%clk 0:00:26.5]} 31... Nb7 {[%clk
0:00:04]} 32. Nc4 {[%clk 0:00:26.3]} 32... Rdd8 {[%clk 0:00:03.1]} 33. f4 {[%clk
0:00:24.4]} 33... g6 {[%clk 0:00:02.4]} 34. Kf3 {[%clk 0:00:24.2]} 34... f5
{[%clk 0:00:02.5]} 35. fxe5 {[%clk 0:00:20.8]} 35... Rc6 {[%clk 0:00:01.6]} 36.
exd6 {[%clk 0:00:20.3]} 36... Bf6 {[%clk 0:00:02]} 37. d7 {[%clk 0:00:15.3]}
37... Rc7 {[%clk 0:00:02.4]} 38. R5d2 {[%clk 0:00:06.5]} 38... Rdxd7 {[%clk
0:00:02]} 39. Rxd7 {[%clk 0:00:05.5]} 39... Rxd7 {[%clk 0:00:02.9]} 40. Rxd7
{[%clk 0:00:05.6]} 40... Kxd7 {[%clk 0:00:03.8]} 41. Ke3 {[%clk 0:00:04]} 41...
Ke6 {[%clk 0:00:02.7]} 42. Nd2 {[%clk 0:00:02.8]} 42... Nd8 {[%clk 0:00:02.4]}
43. c4 {[%clk 0:00:02.1]} 43... a5 {[%clk 0:00:02.4]} 44. Kd3 {[%clk 0:00:02.1]}
44... Nc6 {[%clk 0:00:02.5]} 45. Nf3 {[%clk 0:00:01.9]} 45... g5 {[%clk
0:00:03]} 46. Bc1 {[%clk 0:00:01.9]} 46... h6 {[%clk 0:00:02.7]} 47. h4 {[%clk
0:00:02.1]} 47... g4 {[%clk 0:00:03.3]} 48. Nd2 {[%clk 0:00:02.1]} 48... Be5
{[%clk 0:00:03.2]} 49. Nf1 {[%clk 0:00:02.3]} 49... h5 {[%clk 0:00:03.2]} 50.
Bd2 {[%clk 0:00:02.5]} 50... Bd6 {[%clk 0:00:03.1]} 51. Bf4 {[%clk 0:00:02.5]}
51... Bc5 {[%clk 0:00:02]} 52. Ne3 {[%clk 0:00:02.3]} 52... Nb4+ {[%clk
0:00:02.7]} 53. Kc3 {[%clk 0:00:02.2]} 53... Na2+ {[%clk 0:00:02.7]} 54. Kd3
{[%clk 0:00:02.6]} 54... Nc1+ {[%clk 0:00:02.5]} 55. Kd2 {[%clk 0:00:02.7]}
55... Nxb3+ {[%clk 0:00:02.6]} 56. Kc3 {[%clk 0:00:02.8]} 56... Nd4 {[%clk
0:00:02.5]} 57. Nd5 {[%clk 0:00:02.7]} 57... Nc6 {[%clk 0:00:02.3]} 58. Nc7+
{[%clk 0:00:02.5]} 58... Kd7 {[%clk 0:00:02.2]} 59. Nd5 {[%clk 0:00:02.9]} 59...
Bd4+ {[%clk 0:00:02.4]} 60. Kd3 {[%clk 0:00:03.3]} 60... Bg7 {[%clk 0:00:02.5]}
61. Bd2 {[%clk 0:00:02.1]} 61... Kd6 {[%clk 0:00:02.5]} 62. Bf4+ {[%clk
0:00:01.2]} 62... Be5 {[%clk 0:00:03.1]} 63. Bd2 {[%clk 0:00:01.5]} 63... Bxg3
{[%clk 0:00:02.9]} 64. Nf6 {[%clk 0:00:01.5]} 64... Be5 {[%clk 0:00:03.1]} 65.
Nxh5 {[%clk 0:00:01.9]} 65... Nb4+ {[%clk 0:00:03.5]} 66. Bxb4+ {[%clk 0:00:02]}
66... axb4 {[%clk 0:00:04.1]} 67. a5 {[%clk 0:00:02.2]} 67... b3 {[%clk
0:00:04.4]} 68. a6 {[%clk 0:00:00.8]} 68... b2 {[%clk 0:00:04.9]} 69. Kc2 {[%clk
0:00:01.1]} 69... Kc7 {[%clk 0:00:05.4]} 70. c5 {[%clk 0:00:01.1]} 70... f4
{[%clk 0:00:04.4]} 71. Nxf4 {[%clk 0:00:01.3]} 71... Bxf4 {[%clk 0:00:05.3]} 72.
Kxb2 {[%clk 0:00:01.7]} 72... g3 {[%clk 0:00:05.7]} 0-1